bitfinex/quotes_SOLUSD_20250414
["timestamp","ask_amount","ask_price","bid_price","bid_amount"]
[1744597107704,19.13764402,131.02,130.97,19.13764402]
[1744597108001,19.13764402,131.03,130.98,19.13764402]
[1744597108422,6.1059,131.02,130.98,19.13764402]
[1744597108623,0.17216157,131.06,131.0,19.13764402]
[1744597108624,19.13764402,131.05,131.0,19.13764402]
[1744597108915,19.13764402,131.05,130.98,6.1075]
[1744597109115,19.13764402,131.04,130.98,19.13764402]
[1744597109326,19.13764402,131.01,130.96,19.13764402]
[1744597109496,19.13764402,131.0,130.95,19.13764402]
[1744597109923,19.13764402,131.01,130.96,19.13764402]
[1744597110222,6.1054,131.03,130.96,25.24584402]
[1744597110430,25.24304402,131.03,130.98,19.13764402]
[1744597110605,32.82274402,131.04,130.99,19.13764402]
[1744597110809,13.6851,131.04,131.0,19.13764402]
[1744597111018,6.1051,131.04,131.0,19.13764402]
[1744597111525,6.1051,131.04,130.99,19.13764402]
[1744597112403,6.1051,131.04,131.0,19.13764402]
[1744597112808,6.1051,131.04,130.99,19.13764402]
[1744597113004,19.13764402,131.03,130.96,88.6786]
[1744597113200,19.13764402,131.02,130.97,19.13764402]
[1744597113715,6.1064,131.01,130.97,19.13764402]
[1744597114221,6.1064,131.01,130.96,88.6786]
[1744597114625,6.1064,131.01,130.97,19.13764402]
[1744597114770,25.24374402,131.02,130.97,19.13764402]
[1744597115802,25.24214402,131.05,131.0,19.13764402]
[1744597116029,6.1342,131.06,131.01,19.13764402]
[1744597116413,25.27184402,131.06,131.01,19.13764402]
[1744597117605,19.13764402,131.05,130.99,25.24484402]
[1744597118110,19.13764402,131.04,130.99,25.24484402]
[1744597118623,25.24284402,131.04,130.99,25.24484402]
[1744597119209,19.13764402,131.0,130.95,19.13764402]
[1744597119407,19.13764402,130.96,130.91,6.1108]
[1744597119714,19.13764402,130.94,130.89,7.58]
[1744597119927,19.13764402,130.92,130.88,82.57]
[1744597120228,19.13764402,130.92,130.87,31.68274402]
[1744597120229,19.13764402,130.94,130.89,19.13764402]
[1744597120537,19.13764402,130.95,130.9,19.13764402]
[1744597120726,25.24694402,130.95,130.9,25.24914402]
[1744597120910,19.13764402,130.94,130.89,19.13764402]
[1744597121111,19.13764402,130.94,130.88,6.1121]
[1744597121420,25.24594402,130.97,130.91,19.13764402]
[1744597121604,25.24594402,130.97,130.92,19.13764402]
[1744597121802,6.1083,130.97,130.92,19.13764402]
[1744597122022,82.9,131.01,130.94,19.13764402]
[1744597122208,19.13764402,130.96,130.92,0.063]
[1744597122930,25.24664402,130.96,130.92,0.063]
[1744597123139,19.13764402,130.94,130.92,0.063]
[1744597123935,19.13764402,130.95,130.92,0.063]
[1744597124146,19.13764402,130.96,130.92,0.063]
[1744597124345,19.13764402,130.95,130.92,0.063]
[1744597125145,25.24644402,130.96,130.92,0.063]
[1744597126346,19.13764402,130.97,130.92,19.20064402]
[1744597126530,19.13764402,130.98,130.92,19.20064402]
[1744597126836,19.13764402,130.97,130.92,19.20064402]
[1744597127217,25.24614402,130.97,130.92,0.063]
[1744597127436,6.1085,130.97,130.92,0.063]
[1744597127639,25.24614402,130.97,130.92,19.20064402]
[1744597127942,19.13764402,130.96,130.92,0.063]
[1744597128146,19.13764402,130.93,130.92,0.063]
[1744597129443,25.24774402,130.93,130.92,0.063]
[1744597129736,6.1101,130.93,130.92,0.063]
[1744597130122,19.13764402,130.94,130.92,0.063]
[1744597130328,25.24634402,130.96,130.92,0.063]
[1744597131138,19.13764402,130.95,130.92,0.063]
[1744597131638,26.65613357,130.97,130.92,19.20064402]
[1744597131639,26.71764402,130.97,130.92,19.20064402]
[1744597131824,19.13764402,130.99,130.94,19.13764402]
[1744597132338,45.13764402,130.98,130.93,19.13764402]
[1744597132541,45.13764402,130.98,130.92,0.063]
[1744597132865,45.13764402,130.98,130.93,19.13764402]
[1744597133037,26.0,130.98,130.94,19.13764402]
[1744597133242,25.24504402,130.99,130.94,19.13764402]
[1744597133447,6.1074,130.99,130.95,19.13764402]
[1744597133748,25.24504402,130.99,130.94,25.24704402]
[1744597134847,19.13764402,130.97,130.92,19.20064402]
[1744597136452,19.13764402,130.97,130.92,25.31104402]
[1744597136624,25.24574402,130.98,130.93,19.13764402]
[1744597137055,51.24574402,130.98,130.92,25.31104402]
[1744597137228,51.24574402,130.98,130.92,6.1734]
[1744597137434,51.24574402,130.98,130.92,25.31104402]
[1744597137657,51.24574402,130.98,130.93,19.13764402]
[1744597137945,19.13764402,131.0,130.94,19.13764402]
[1744597138151,26.71764402,131.01,130.96,19.13764402]
[1744597138331,26.71764402,131.01,130.95,19.13764402]
[1744597138525,19.13764402,131.0,130.95,19.13764402]
[1744597139035,25.24464402,131.0,130.95,25.24664402]
[1744597140050,19.13764402,130.99,130.94,19.13764402]
[1744597140238,19.13764402,130.99,130.93,89.0704]
[1744597140543,19.13764402,130.97,130.93,82.57]
[1744597141353,25.24614402,130.97,130.93,82.57]
[1744597141732,25.24614402,130.97,130.92,0.063]
[1744597141932,19.13764402,130.96,130.92,0.063]
[1744597142441,19.13764402,130.96,130.92,6.1735]
[1744597142645,25.24614402,130.97,130.92,25.31114402]
[1744597143756,25.24554402,130.98,130.93,19.13764402]
[1744597143950,25.24554402,130.98,130.92,19.20064402]
[1744597143951,19.13764402,130.97,130.92,19.20064402]
[1744597144130,19.13764402,130.97,130.92,25.31114402]
[1744597144338,25.24554402,130.98,130.93,19.13764402]
[1744597144540,6.1079,130.98,130.94,19.13764402]
[1744597145040,6.1079,130.98,130.93,19.13764402]
[1744597145241,19.13764402,130.96,130.92,0.063]
[1744597145645,25.24714402,130.95,130.92,0.063]
[1744597146465,6.1073,130.99,130.93,19.13764402]
[1744597146642,15.55152314,131.0,130.95,19.13764402]
[1744597146643,25.24454402,131.0,130.95,19.13764402]
[1744597146839,20.44691043,131.02,130.97,19.13764402]
[1744597146840,20.79274402,131.02,130.97,19.13764402]
[1744597147042,0.03,131.04,130.99,19.13764402]
[1744597147267,0.03,131.04,131.0,19.13764402]
[1744597147584,0.03,131.04,130.95,20.37181043]
[1744597147585,19.13764402,131.03,130.97,19.13764402]
[1744597147771,25.24394402,131.02,130.97,19.13764402]
[1744597148260,19.13764402,131.03,130.98,19.13764402]
[1744597148565,6.1352,131.04,131.0,19.13764402]
[1744597149140,0.03,131.04,131.0,19.13764402]
[1744597149358,0.03,131.04,131.02,19.13764402]
[1744597149654,0.03,131.04,131.01,25.24394402]
[1744597149870,0.03,131.04,131.02,19.13764402]
[1744597150169,0.03,131.04,131.01,25.24394402]
[1744597150962,0.03,131.04,131.01,19.13764402]
[1744597154563,0.03,131.04,131.03,19.13764402]
[1744597154773,0.03,131.04,131.01,19.13764402]
[1744597154951,0.03,131.04,131.0,19.13764402]
[1744597155440,0.03,131.04,131.01,19.13764402]
[1744597156057,0.03,131.04,131.0,19.13764402]
[1744597156264,6.135,131.04,131.0,19.13764402]
[1744597157288,19.13764402,131.01,130.95,19.13764402]
[1744597157474,19.13764402,130.98,130.93,107.81754402]
[1744597157654,19.13764402,130.99,130.94,19.13764402]
[1744597157875,6.0625,131.02,130.96,19.13764402]
[1744597158163,19.13764402,131.02,130.97,19.13764402]
[1744597158367,34.39294402,131.03,130.98,19.13764402]
[1744597158555,32.76334402,131.03,130.98,19.13764402]
[1744597158763,13.6257,131.03,130.98,19.13764402]
[1744597158967,32.76334402,131.03,130.98,19.13764402]
[1744597159167,13.6257,131.03,130.99,19.13764402]
[1744597159558,6.1057,131.03,130.99,19.13764402]
[1744597159870,6.1057,131.03,130.98,19.13764402]
[1744597160053,25.24334402,131.03,130.98,19.13764402]
[1744597160573,0.03,131.04,131.0,19.13764402]
[1744597160866,0.03,131.04,130.99,19.13764402]
[1744597161383,19.16764402,131.04,130.99,19.13764402]
[1744597161672,25.27264402,131.04,130.99,19.13764402]
[1744597162473,19.13764402,131.03,130.98,19.13764402]
[1744597162666,19.13764402,131.03,130.95,32.76664402]
[1744597162667,19.07613357,131.03,130.95,32.76664402]
[1744597162864,19.13764402,130.99,130.94,101.70764402]
[1744597163176,19.13764402,130.97,130.92,19.20064402]
[1744597163357,19.13764402,130.97,130.92,0.063]
[1744597163559,19.13764402,130.97,130.92,19.20064402]
[1744597163958,6.1087,130.96,130.92,19.20064402]
[1744597164980,6.1084,130.97,130.92,19.20064402]
[1744597165579,25.24604402,130.97,130.92,19.20064402]
[1744597165876,40.51664402,130.97,130.92,0.063]
[1744597166080,19.13764402,130.95,130.92,0.063]
[1744597166468,59.59277759,130.97,130.92,0.063]
[1744597166659,19.13764402,130.96,130.92,0.063]
[1744597166859,25.24604402,130.97,130.92,19.20064402]
[1744597167268,25.24604402,130.97,130.92,0.063]
[1744597167473,25.24604402,130.97,130.92,19.20064402]
[1744597167880,6.1084,130.97,130.92,0.063]
[1744597168389,25.24604402,130.97,130.92,0.063]
[1744597168689,38.21377759,130.96,130.92,0.063]
[1744597168870,25.24734402,130.94,130.92,0.063]
[1744597169183,19.13764402,130.97,130.92,0.063]
[1744597169384,19.13764402,130.97,130.92,19.20064402]
[1744597169590,19.13764402,130.97,130.92,0.063]
[1744597169788,19.13764402,130.97,130.92,19.20064402]
[1744597170171,25.24584402,130.97,130.92,19.20064402]
[1744597170372,25.24584402,130.97,130.92,0.063]
[1744597170576,19.13764402,130.95,130.92,0.063]
[1744597171392,19.13764402,130.96,130.92,0.063]
[1744597172203,19.13764402,130.95,130.92,0.063]
[1744597172394,25.24704402,130.95,130.92,0.063]
[1744597172599,19.13764402,130.94,130.92,0.063]
[1744597173178,19.13764402,130.93,130.92,0.063]
[1744597174473,25.24774402,130.93,130.92,0.063]
[1744597174787,19.13764402,130.97,130.92,19.20064402]
[1744597174989,19.13764402,130.96,130.92,0.063]
[1744597175180,19.13764402,130.94,130.92,0.063]
[1744597176074,19.13764402,130.93,130.92,0.063]
[1744597176799,25.24774402,130.93,130.92,0.063]
[1744597176977,6.1101,130.93,130.92,0.063]
[1744597177171,25.24774402,130.93,130.92,0.063]
[1744597177367,6.1101,130.93,130.92,0.063]
[1744597177773,25.24774402,130.93,130.92,0.063]
[1744597179178,44.32387759,130.93,130.92,0.063]
[1744597179588,25.18623357,130.93,130.92,0.063]
[1744597179832,44.32387759,130.93,130.92,0.063]
[1744597181492,6.39442314,130.93,130.92,0.063]
[1744597181691,19.13764402,130.95,130.92,0.063]
[1744597181877,102.03764402,130.96,130.92,0.063]
[1744597182193,82.9,130.96,130.92,19.20064402]
[1744597182397,6.1084,130.97,130.93,19.13764402]
[1744597182981,32.66564402,130.98,130.93,19.13764402]
[1744597183587,32.66564402,130.98,130.93,25.24754402]
[1744597183789,32.66564402,130.98,130.92,25.31104402]
[1744597184287,32.66564402,130.98,130.93,19.13764402]
[1744597185688,13.528,130.98,130.93,19.13764402]
[1744597185882,6.1064,131.01,130.96,19.13764402]
[1744597186081,6.1064,131.01,130.97,19.13764402]
[1744597186278,25.24404402,131.01,130.95,19.13764402]
[1744597186480,19.13764402,131.0,130.95,19.13764402]
[1744597186701,25.24404402,131.01,130.96,19.13764402]
[1744597187077,25.24404402,131.01,130.94,6.1093]
[1744597187276,19.13764402,130.99,130.93,19.13764402]
[1744597187491,19.13764402,131.0,130.95,19.13764402]
[1744597189808,25.24474402,131.0,130.95,19.13764402]
[1744597190013,6.1071,131.0,130.96,19.13764402]
[1744597190433,19.07613357,130.99,130.92,0.063]
[1744597190588,19.13764402,130.97,130.92,19.20064402]
[1744597191101,19.13764402,130.97,130.92,25.31114402]
[1744597191295,11.9740463,130.98,130.92,18.1475463]
[1744597191905,11.9740463,130.99,130.93,11.9740463]
[1744597192114,11.9740463,131.01,130.95,11.9740463]
[1744597192304,11.9740463,131.01,130.96,11.9740463]
[1744597192612,11.9740463,131.01,130.95,11.9740463]
[1744597192915,11.9740463,131.01,130.96,11.9740463]
[1744597193205,18.0805463,131.01,130.96,11.9740463]
[1744597193901,18.0805463,131.01,130.93,6.1099]
[1744597193902,11.9740463,131.0,130.93,6.1099]
[1744597194215,11.9740463,130.99,130.94,11.9740463]
[1744597194392,11.9740463,130.99,130.92,88.7435]
[1744597194596,11.9740463,130.98,130.93,11.9740463]
[1744597194807,11.9740463,130.99,130.94,11.9740463]
[1744597195417,18.0817463,130.99,130.94,11.9740463]
[1744597197215,33.3500463,130.99,130.93,11.9740463]
[1744597197417,6.1082,130.97,130.93,11.9740463]
[1744597198418,6.1078,130.98,130.93,11.9740463]
[1744597198616,6.1078,130.98,130.94,11.9740463]
[1744597199220,6.1078,130.98,130.93,18.0840463]
[1744597200121,6.1066,131.01,130.96,11.9740463]
[1744597200288,6.1061,131.02,130.98,11.9740463]
[1744597200498,18.0801463,131.02,130.96,11.9740463]
[1744597200926,11.9740463,131.01,130.96,11.9740463]
[1744597201603,18.0807463,131.01,130.96,11.9740463]
[1744597201940,6.1067,131.01,130.96,18.0826463]
[1744597202310,18.0801463,131.02,130.97,11.9740463]
[1744597202520,6.1061,131.02,130.97,11.9740463]
[1744597203410,25.4996463,131.03,130.98,11.9740463]
[1744597203604,18.0796463,131.03,130.98,11.9740463]
[1744597203806,0.03,131.04,131.02,11.9740463]
[1744597204132,0.03,131.04,131.03,11.9740463]
[1744597205455,0.03,131.04,131.03,18.0794463]
[1744597205938,0.03,131.04,131.03,11.9740463]
[1744597206320,0.03,131.04,131.03,18.0794463]
[1744597206831,0.03,131.04,131.03,11.9740463]
[1744597207044,0.03,131.04,130.98,101.36181043]
[1744597207233,0.03,131.04,131.0,11.9740463]
[1744597207536,0.03,131.04,131.02,11.9740463]
[1744597207733,0.03,131.04,131.03,11.9740463]
[1744597208746,0.03,131.04,131.03,94.5440463]
[1744597208949,0.03,131.06,131.05,44.79181043]
[1744597209128,0.03,131.09,131.06,18.79181043]
[1744597209326,0.03,131.09,131.08,37.9740463]
[1744597209533,0.03,131.09,131.08,44.0771463]
[1744597215524,0.03,131.09,131.08,37.9740463]
[1744597216551,0.03,131.09,131.07,11.9740463]
[1744597217460,0.03,131.09,131.08,11.9740463]
[1744597218248,0.03,131.09,131.08,113.33585673]
[1744597219324,0.03,131.09,131.08,119.43895673]
[1744597219646,0.03,131.09,131.08,100.78930787]
[1744597219849,0.03,131.09,131.08,119.43895673]
[1744597220832,0.03,131.09,131.08,100.6471463]
[1744597222345,0.03,131.09,131.08,18.0771463]
[1744597224149,12.0040463,131.09,131.03,90.1567]
[1744597224450,12.0040463,131.09,131.04,11.9740463]
[1744597225028,12.0040463,131.09,131.03,88.6752]
[1744597225232,12.0040463,131.09,131.04,11.9740463]
[1744597225430,0.03,131.09,131.05,11.9740463]
[1744597226264,0.03,131.09,131.07,11.9740463]
[1744597226858,0.03,131.09,131.08,11.9740463]
[1744597228455,0.03,131.09,131.08,18.0771463]
[1744597229956,0.03,131.09,131.06,11.9740463]
[1744597230881,0.03,131.09,131.05,82.57]
[1744597230882,12.0040463,131.09,131.05,82.57]
[1744597231430,11.9740463,131.06,131.01,94.5440463]
[1744597231638,11.9740463,131.04,131.0,0.063]
[1744597231832,18.0790463,131.04,131.0,0.063]
[1744597232164,11.9740463,131.03,131.0,0.063]
[1744597232769,11.9740463,131.01,131.0,0.063]
[1744597233070,11.9740463,131.03,131.0,0.063]
[1744597233263,25.24377424,131.05,131.0,0.063]
[1744597233567,25.24377424,131.05,131.0,19.20227424]
[1744597233861,25.24377424,131.05,131.0,25.30897424]
[1744597234158,6.1045,131.05,131.0,25.30897424]
[1744597234755,25.24377424,131.05,131.0,19.20227424]
[1744597234960,19.13927424,131.03,131.0,0.063]
[1744597236848,19.13927424,131.02,131.0,0.063]
[1744597237540,25.24487424,131.03,131.0,0.063]
[1744597239859,37.93108467,131.01,131.0,0.063]
[1744597240063,44.51080781,131.01,131.0,0.063]
[1744597240948,31.47793357,131.01,131.0,0.063]
[1744597241147,50.61720781,131.01,131.0,0.063]
[1744597243074,31.47793357,131.01,131.0,0.063]
[1744597243262,50.61720781,131.01,131.0,0.063]
[1744597245059,50.61720781,131.01,131.0,0.0001]
[1744597245372,44.79181043,130.97,130.94,0.063]
[1744597245663,19.13927424,130.95,130.94,0.063]
[1744597245974,19.13927424,130.96,130.94,0.063]
[1744597246373,44.79181043,130.97,130.94,0.063]
[1744597246374,19.13927424,130.97,130.94,0.063]
[1744597246671,6.1064,131.01,130.96,19.13927424]
[1744597246873,25.24567424,131.01,130.96,19.13927424]
[1744597247943,25.24567424,131.01,130.96,25.24797424]
[1744597248569,19.13927424,130.99,130.94,19.20227424]
[1744597248770,19.13927424,130.98,130.94,0.063]
[1744597249653,25.24727424,130.98,130.94,0.063]
[1744597251678,6.108,130.98,130.94,19.20227424]
[1744597252378,24.89681043,131.04,130.97,19.13927424]
[1744597252566,44.03608467,131.04,130.98,19.13927424]
[1744597252757,44.03608467,131.04,130.96,8.037]
[1744597252956,44.03608467,131.04,130.98,19.13927424]
[1744597253177,36.85831864,131.04,130.98,11.96150821]
[1744597253351,36.85831864,131.04,130.98,18.06920821]
[1744597253974,18.20866978,131.04,130.98,18.06920821]
[1744597254174,36.85831864,131.04,130.98,6.1077]
[1744597254390,36.85831864,131.04,130.98,18.06920821]
[1744597255177,44.03504022,131.04,130.98,19.13822979]
[1744597255754,44.03504022,131.04,130.97,6.1082]
[1744597255969,44.03504022,131.04,130.98,19.13822979]
[1744597256483,44.03504022,131.04,130.98,25.24592979]
[1744597257177,6.105,131.04,130.99,19.13822979]
[1744597258282,25.24322979,131.04,130.99,25.24542979]
[1744597259179,25.24322979,131.04,130.98,25.24582979]
[1744597260286,19.13822979,131.03,130.97,25.24632979]
[1744597260488,19.13822979,131.02,130.97,25.24632979]
[1744597260997,19.13822979,131.03,130.98,19.13822979]
[1744597261161,25.24322979,131.04,130.99,19.13822979]
[1744597261562,19.16822979,131.06,131.01,19.13822979]
[1744597262275,25.24302979,131.05,131.0,25.24502979]
[1744597262789,25.24302979,131.05,131.0,19.13822979]
[1744597263769,19.13822979,131.01,130.94,32.83082979]
[1744597263973,19.13822979,131.0,130.94,32.83082979]
[1744597264688,25.24522979,131.0,130.94,32.83082979]
[1744597265262,25.24522979,131.0,130.95,19.13822979]
[1744597265687,25.24522979,131.0,130.94,13.6926]
[1744597265996,25.24522979,131.0,130.95,25.24722979]
[1744597267592,19.13822979,131.03,130.98,19.13822979]
[1744597267776,25.27242979,131.06,131.01,19.13822979]
[1744597267976,0.03,131.06,131.04,19.13822979]
[1744597268194,0.03,131.06,131.05,37.93004022]
[1744597268591,0.03,131.06,131.05,43.97554022]
[1744597269582,0.03,131.06,131.05,50.08004022]
[1744597270694,0.03,131.06,131.05,31.28822979]
[1744597272605,0.03,131.06,131.05,19.13822979]
[1744597273696,0.03,131.06,131.04,19.13822979]
[1744597275579,0.03,131.06,131.05,19.13822979]
[1744597276699,0.03,131.06,131.05,25.24272979]
[1744597277030,0.03,131.06,131.05,19.13822979]
[1744597278215,0.03,131.06,131.05,25.24272979]
[1744597278404,0.03,131.06,131.05,135.59334022]
[1744597278609,0.03,131.06,131.05,135.87766336]
[1744597278801,0.03,131.08,131.07,70.37646336]
[1744597279115,0.03,131.08,131.07,133.87032979]
[1744597280194,0.03,131.08,131.07,127.70822979]
[1744597280606,0.03,131.08,131.07,133.81182979]
[1744597280913,0.03,131.08,131.07,152.60364022]
[1744597281495,0.03,131.08,131.07,133.81182979]
[1744597283807,0.03,131.08,131.07,127.70822979]
[1744597284120,19.16822979,131.08,131.01,82.57]
[1744597284421,19.13822979,131.03,130.97,6.1081]
[1744597284606,19.13822979,131.03,130.97,19.13822979]
[1744597284804,19.13822979,131.05,131.0,19.13822979]
[1744597285003,0.03,131.08,131.02,19.13822979]
[1744597285187,19.16822979,131.08,131.03,19.13822979]
[1744597285400,19.13822979,131.07,131.02,19.13822979]
[1744597286091,19.13822979,131.05,130.98,6.1076]
[1744597286291,19.13822979,131.04,130.99,19.13822979]
[1744597286495,19.13822979,131.05,131.0,19.13822979]
[1744597286903,25.24212979,131.07,131.01,19.13822979]
[1744597287122,19.13822979,131.05,131.0,19.13822979]
[1744597287305,19.13822979,131.06,131.0,19.13822979]
[1744597287513,19.13822979,131.04,130.99,19.13822979]
[1744597287897,19.13822979,131.05,131.0,19.13822979]
[1744597288115,6.1331,131.08,131.02,19.13822979]
[1744597288292,19.13822979,131.07,131.02,19.13822979]
[1744597288793,25.27132979,131.08,131.02,19.13822979]
[1744597288996,0.03,131.08,131.05,19.13822979]
[1744597289211,0.03,131.08,131.07,19.13822979]
[1744597290120,0.03,131.08,131.07,25.24182979]
[1744597291325,0.03,131.08,131.07,107.81182979]
[1744597294109,0.03,131.08,131.07,126.88796336]
[1744597295332,0.03,131.09,131.08,0.28432314]
[1744597295501,0.03,131.09,131.08,101.99255293]
[1744597297322,0.03,131.09,131.08,107.81132979]
[1744597297500,0.03,131.09,131.08,126.60314022]
[1744597298108,0.03,131.09,131.08,107.81132979]
[1744597298927,0.03,131.09,131.08,126.60314022]
[1744597299237,0.03,131.09,131.08,126.88746336]
[1744597300028,0.03,131.09,131.08,126.60314022]
[1744597300899,0.03,131.09,131.08,107.81132979]
[1744597301610,0.03,131.09,131.08,82.57]
[1744597301830,0.03,131.09,131.06,19.13822979]
[1744597302025,19.16822979,131.09,131.02,82.57]
[1744597302328,19.16822979,131.09,131.04,19.13822979]
[1744597302508,19.16822979,131.09,131.03,19.13822979]
[1744597303224,0.03,131.09,131.06,19.13822979]
[1744597303737,19.16822979,131.09,131.04,19.13822979]
[1744597304731,19.16822979,131.09,131.07,19.13822979]
[1744597304732,0.03,131.09,131.07,19.13822979]
[1744597304916,0.03,131.09,131.08,19.13822979]
[1744597305706,0.03,131.09,131.08,25.24132979]
[1744597308842,0.03,131.09,131.08,107.81132979]
[1744597313247,0.03,131.09,131.08,100.6131527]
[1744597315264,0.03,131.09,131.08,119.40496313]
[1744597315944,0.03,131.09,131.08,100.75531427]
[1744597316457,0.03,131.09,131.08,119.68928627]
[1744597319755,0.03,131.12,131.11,26.0]
[1744597320057,0.03,131.12,131.11,44.0417527]
[1744597320557,0.03,131.12,131.11,126.6117527]
[1744597321233,0.0001,131.14,131.12,18.79181043]
[1744597321432,0.0001,131.14,131.13,11.9400527]
[1744597322043,0.03,131.16,131.14,18.79181043]
[1744597322251,0.01,131.16,131.15,19.56221427]
[1744597322440,0.01,131.16,131.15,38.21186313]
[1744597322822,0.01,131.16,131.15,11.9400527]
[1744597323019,0.01,131.16,131.14,82.57]
[1744597323225,0.01,131.16,131.14,11.9400527]
[1744597323423,0.01,131.16,131.13,19.4200527]
[1744597323655,0.01,131.16,131.12,94.5100527]
[1744597323957,0.01,131.16,131.14,11.9400527]
[1744597324253,0.01,131.16,131.12,88.6711]
[1744597324451,0.01,131.16,131.13,11.9400527]
[1744597324657,11.9400527,131.15,131.1,82.57]
[1744597324849,6.5813,131.16,131.1,82.57]
[1744597324850,11.9400527,131.14,131.1,82.57]
[1744597325157,11.9400527,131.13,131.09,7.48]
[1744597325357,11.9400527,131.13,131.08,18.0429527]
[1744597325560,11.9400527,131.11,131.05,7.543]
[1744597325863,11.9400527,131.07,131.05,0.063]
[1744597326153,11.9400527,131.08,131.05,0.063]
[1744597326453,1.502,131.1,131.05,0.063]
[1744597326646,11.9400527,131.08,131.05,0.063]
[1744597326846,11.9400527,131.09,131.05,0.063]
[1744597327060,13.4420527,131.1,131.05,18.1074527]
[1744597327235,20.62168148,131.1,131.05,19.18268148]
[1744597327427,19.11968148,131.09,131.05,0.063]
[1744597329150,26.72398148,131.1,131.05,19.18268148]
[1744597329361,1.502,131.1,131.05,19.18268148]
[1744597329538,1.502,131.1,131.06,19.11968148]
[1744597329739,19.11968148,131.09,131.05,0.063]
[1744597330094,20.62168148,131.1,131.05,19.18268148]
[1744597330361,0.01,131.16,131.11,0.14216157]
[1744597330535,0.01,131.16,131.15,19.11968148]
[1744597331355,0.01,131.16,131.15,25.21948148]
[1744597332732,0.01,131.16,131.15,19.11968148]
[1744597332948,0.01,131.16,131.15,25.21948148]
[1744597333353,0.01,131.16,131.15,44.29561505]
[1744597333735,0.01,131.16,131.15,25.21948148]
[1744597335364,0.01,131.16,131.15,44.01129191]
[1744597335544,0.01,131.16,131.15,44.29561505]
[1744597335949,0.01,131.16,131.15,126.86561505]
[1744597336162,0.01,131.16,131.15,126.58129191]
[1744597337968,0.01,131.16,131.15,88.6698]
[1744597338264,0.01,131.16,131.15,126.86561505]
[1744597338642,0.01,131.16,131.15,126.58129191]
[1744597339043,0.01,131.16,131.15,126.86561505]
[1744597339660,0.03,131.17,131.16,101.35181043]
[1744597339868,0.03,131.17,131.16,120.47149191]
[1744597340255,0.03,131.17,131.16,126.57089191]
[1744597340562,0.03,131.17,131.16,107.77908148]
[1744597341263,0.03,131.22,131.16,107.77908148]
[1744597341264,0.03,131.22,131.2,26.0]
[1744597341463,0.03,131.22,131.17,101.35181043]
[1744597341768,0.03,131.22,131.19,19.11968148]
[1744597341964,0.03,131.22,131.18,19.11968148]
[1744597342276,0.03,131.22,131.2,19.11968148]
[1744597342469,0.03,131.22,131.21,19.11968148]
[1744597345586,0.03,131.22,131.21,25.21668148]
[1744597345885,0.03,131.22,131.21,19.11968148]
[1744597346076,0.03,131.22,131.2,19.11968148]
[1744597346899,0.03,131.22,131.21,19.11968148]
[1744597347495,0.03,131.22,131.2,82.56]
[1744597347982,0.03,131.22,131.2,107.77698148]
[1744597348280,0.03,131.22,131.21,19.11968148]
[1744597348674,0.03,131.22,131.21,25.21668148]
[1744597350284,0.03,131.22,131.21,19.11968148]
[1744597350886,0.03,131.22,131.21,25.21668148]
[1744597352173,0.03,131.22,131.21,19.11968148]
[1744597352368,0.03,131.22,131.21,25.21668148]
[1744597352780,0.03,131.22,131.21,6.097]
[1744597352985,0.03,131.22,131.21,25.21668148]
[1744597353371,0.03,131.22,131.2,88.6573]
[1744597353586,0.03,131.22,131.21,19.11968148]
[1744597354805,0.03,131.22,131.2,88.6573]
[1744597354983,0.03,131.22,131.21,19.11968148]
[1744597355174,0.03,131.22,131.21,11.92007697]
[1744597357399,0.03,131.22,131.21,18.01707697]
[1744597357697,0.03,131.22,131.2,94.48007697]
[1744597357993,0.03,131.22,131.2,82.56]
[1744597358171,0.03,131.22,131.21,11.92007697]
[1744597360093,0.03,131.22,131.21,18.01707697]
[1744597362800,0.03,131.22,131.21,11.92007697]
[1744597363103,0.03,131.22,131.21,119.3688874]
[1744597363987,0.03,131.22,131.21,119.65321054]
[1744597364715,0.03,131.22,131.21,119.3688874]
[1744597366393,0.03,131.22,131.21,100.57707697]
[1744597367090,0.03,131.22,131.21,119.3688874]